bitfinex-derivatives/quotes_ETHF0:USTF0_20250123
["timestamp","ask_amount","ask_price","bid_price","bid_amount"]
[1737644003339,3.94989872,3278.9,3277.9,3.2078]
[1737644003543,7.82403554,3278.9,3278.6,0.6101]
[1737644003845,3.2078,3279.4,3279.3,0.60997]
[1737644004038,4.7894,3279.9,3279.1,3.2078]
[1737644004243,4.7894,3279.9,3279.8,0.60988]
[1737644004445,3.2078,3279.9,3279.8,0.60988]
[1737644004642,3.2078,3279.9,3279.1,3.2078]
[1737644004842,3.2078,3279.9,3279.7,0.60989]
[1737644005038,3.2078,3279.9,3279.8,0.60988]
[1737644005439,3.2078,3279.9,3279.1,3.2078]
[1737644005749,7.23368486,3279.9,3279.7,0.6099]
[1737644006240,7.23368486,3279.9,3279.1,3.2078]
[1737644006442,0.00457645,3280.2,3279.5,3.2078]
[1737644006648,0.00457645,3280.2,3280.1,0.60982]
[1737644006952,0.00457645,3280.2,3280.0,0.60983]
[1737644007144,0.00457645,3280.2,3279.5,3.2078]
[1737644007350,0.00457645,3280.2,3280.0,0.60984]
[1737644007846,0.00457645,3280.2,3280.1,0.60982]
[1737644008551,0.00457645,3280.2,3280.1,41.40982]
[1737644009043,0.00457645,3280.2,3280.1,0.60982]
[1737644009557,0.00457645,3280.2,3279.9,3.2078]
[1737644009741,0.00457645,3280.2,3280.1,0.60982]
[1737644010347,0.00457645,3280.2,3280.0,0.60983]
[1737644010542,0.00457645,3280.2,3280.1,0.60982]
[1737644011249,3.92720019,3280.2,3279.9,3.2078]
[1737644011449,0.60982,3280.1,3279.9,3.2078]
[1737644011648,3.92720019,3280.2,3279.9,3.2078]
[1737644011851,4.53246374,3280.0,3279.9,3.2078]
[1737644012057,4.00548357,3280.1,3280.0,0.60984]
[1737644012347,6.45e-06,3280.2,3280.1,0.60982]
[1737644012541,6.45e-06,3280.2,3280.1,9.55971872]
[1737644012746,6.45e-06,3280.2,3280.1,48.06172]
[1737644013448,6.45e-06,3280.2,3280.1,43.06172]
[1737644013841,6.45e-06,3280.2,3280.1,48.06172]
[1737644014038,6.45e-06,3280.2,3280.1,52.01161872]
[1737644014238,6.45e-06,3280.2,3280.1,43.06172]
[1737644014649,6.45e-06,3280.2,3280.1,2.26172]
[1737644014948,6.45e-06,3280.2,3280.1,0.60982]
[1737644015447,6.45e-06,3280.2,3279.9,3.2078]
[1737644015744,6.45e-06,3280.2,3280.1,0.60982]
[1737644017250,6.45e-06,3280.2,3279.9,3.2078]
[1737644017451,6.45e-06,3280.2,3280.0,0.60984]
[1737644017843,0.60986,3280.0,3279.5,0.60992]
[1737644018049,3.2078,3279.7,3279.4,1.6951]
[1737644018352,3.2078,3279.7,3279.5,0.60992]
[1737644018555,3.2078,3279.7,3279.0,3.21237645]
[1737644018752,3.87260691,3279.6,3279.0,3.21237645]
[1737644018948,4.48252691,3279.6,3279.0,3.21237645]
[1737644019143,3.87260691,3279.6,3279.0,3.21237645]
[1737644019355,4.48252691,3279.6,3279.0,3.21237645]
[1737644019752,3.2078,3279.7,3279.5,0.60992]
[1737644019954,3.2078,3279.8,3279.0,3.21237645]
[1737644020151,3.81761645,3280.2,3279.9,0.60986]
[1737644020457,3.2078,3280.0,3279.9,0.60986]
[1737644020654,4.02375245,3280.1,3279.9,0.60986]
[1737644020848,6.45e-06,3280.2,3279.7,3.2078]
[1737644021049,4.03114992,3280.0,3279.3,3.2078]
[1737644021456,6.45e-06,3280.2,3279.6,0.6099]
[1737644021652,4.03114992,3279.9,3279.3,3.2078]
[1737644021846,3.2078,3280.0,3279.3,3.2078]
[1737644021847,0.60993,3279.6,3279.3,3.2078]
[1737644022050,0.60994,3279.5,3279.3,3.2078]
[1737644022253,3.89690168,3279.5,3279.3,3.2078]
[1737644022458,0.60994,3279.5,3279.3,3.2078]
[1737644022658,0.60994,3279.5,3279.3,3.81776]
[1737644023156,0.60995,3279.4,3279.3,3.2078]
[1737644023358,4.0484931,3279.4,3279.0,0.00457645]
[1737644023566,3.2078,3279.6,3279.0,0.00457645]
[1737644023861,4.0484931,3279.3,3279.1,0.61001]
[1737644024056,0.60996,3279.4,3279.1,0.61001]
[1737644024259,3.2078,3279.6,3279.0,0.00457645]
[1737644024260,3.94810445,3279.2,3279.0,0.00457645]
[1737644024462,0.61001,3279.1,3279.0,0.00457645]
[1737644024859,4.55811445,3279.1,3279.0,0.00457645]
[1737644025561,4.99003102,3279.1,3279.0,0.00457645]
[1737644025760,0.43191657,3279.1,3279.0,0.00457645]
[1737644026056,3.81779,3279.2,3279.0,0.61459645]
[1737644026267,3.2078,3279.2,3279.1,0.61001]
[1737644027262,0.60992,3279.6,3279.0,0.00457645]
[1737644027263,3.81772,3279.6,3279.0,0.00457645]
[1737644027465,3.81772,3279.6,3279.3,0.60996]
[1737644027664,4.02153759,3279.5,3279.3,0.60996]
[1737644027865,4.02153759,3279.5,3279.0,0.00457645]
[1737644028060,4.02153759,3279.5,3279.4,0.60995]
[1737644028261,0.60988,3279.8,3279.6,0.60991]
[1737644028462,0.6099,3279.7,3279.5,0.60992]
[1737644028666,3.8979518,3279.8,3279.0,0.00457645]
[1737644028969,3.2078,3279.1,3277.9,3.2078]
[1737644029168,3.2078,3278.6,3278.5,0.61012]
[1737644029368,7.38529315,3279.0,3278.8,0.61005]
[1737644029566,3.2078,3279.1,3278.3,3.2078]
[1737644029765,3.2078,3279.1,3279.0,0.61003]
[1737644029970,4.00579315,3279.0,3278.9,0.61004]
[1737644030159,3.2078,3279.1,3278.7,0.00457645]
[1737644030461,0.61452645,3279.4,3279.2,0.60998]
[1737644030657,3.2078,3279.3,3279.2,0.60998]
[1737644031064,0.00457645,3279.4,3279.3,0.60997]
[1737644032072,0.00457645,3279.4,3278.9,1.7011]
[1737644032263,4.04593895,3279.4,3279.2,0.60998]
[1737644032577,0.00457645,3279.4,3279.3,0.60997]
[1737644033172,3.21237645,3279.4,3279.3,0.60997]
[1737644034065,0.61002,3279.1,3278.8,0.61006]
[1737644034258,3.21237645,3279.4,3278.7,0.00457645]
[1737644034259,0.61003,3279.0,3278.7,0.00457645]
[1737644034466,0.61006,3278.8,3278.7,0.00457645]
[1737644034667,3.2078,3278.9,3278.7,0.00457645]
[1737644034968,4.04896256,3278.8,3278.7,0.00457645]
[1737644035166,4.65902256,3278.8,3278.7,0.00457645]
[1737644035570,5.09115205,3278.8,3278.7,0.00457645]
[1737644036666,5.51006926,3278.8,3278.7,0.00457645]
[1737644036866,5.09115205,3278.8,3278.7,0.00457645]
[1737644037078,5.5100689,3278.8,3278.7,0.00457645]
[1737644037469,5.09115205,3278.8,3278.7,0.00457645]
[1737644037970,10.09115205,3278.8,3278.7,0.00457645]
[1737644038273,1.52531,3278.5,3277.4,0.002]
[1737644038475,3.2078,3277.6,3276.2,3.4124]
[1737644038668,1.5725,3278.4,3276.6,0.002]
[1737644038669,3.2078,3276.8,3276.6,0.002]
[1737644038975,3.2078,3276.8,3276.2,1.7078]
[1737644039169,3.2078,3276.8,3276.5,0.61048]
[1737644039367,3.21237645,3276.8,3276.6,0.61047]
[1737644039671,0.00457645,3276.8,3276.7,0.61045]
[1737644040268,3.2078,3277.2,3277.1,0.61038]
[1737644040471,3.2078,3277.2,3276.2,4.92017645]
[1737644040669,3.2078,3276.8,3276.2,4.92017645]
[1737644040965,3.94989872,3276.5,3276.2,0.00457645]
[1737644041168,0.61052,3276.4,3276.2,0.00457645]
[1737644041374,4.55619042,3276.4,3276.2,0.00457645]
[1737644041574,3.94567042,3276.4,3276.2,0.00457645]
[1737644041876,0.61053,3276.3,3276.2,0.00457645]
[1737644042263,4.02349609,3276.3,3276.2,0.00457645]
[1737644043164,3.2078,3276.4,3276.2,0.00457645]
[1737644043369,3.2078,3276.4,3276.3,0.61048]
[1737644043670,0.00457645,3276.7,3276.2,0.00457645]
[1737644043876,0.00457645,3276.7,3276.6,0.61042]
[1737644044466,3.88165531,3276.7,3276.6,3.81822]
[1737644044662,3.2078,3278.3,3276.6,3.2078]
[1737644044864,3.2078,3277.7,3276.6,3.2078]
[1737644045071,3.2078,3278.3,3277.0,3.2078]
[1737644045379,3.2078,3278.9,3278.6,0.61003]
[1737644045579,3.2078,3278.9,3278.4,3.2078]
[1737644046074,3.99404955,3278.8,3278.4,3.2078]
[1737644046272,4.60406955,3278.8,3278.3,0.00457645]
[1737644046574,3.2078,3278.9,3278.8,0.61001]
[1737644046774,3.2078,3278.9,3278.4,3.2078]
[1737644046968,3.94989872,3278.5,3278.3,0.00457645]
[1737644047374,4.53867695,3278.4,3278.3,0.00457645]
[1737644047571,3.92858695,3278.4,3278.3,0.00457645]
[1737644047973,3.94989872,3279.0,3278.3,0.00457645]
[1737644048168,3.94989872,3279.0,3278.4,3.2078]
[1737644048374,3.87708836,3278.9,3278.8,0.61001]
[1737644048570,3.94989872,3279.5,3279.4,0.60989]
[1737644048775,3.94989872,3280.0,3279.3,3.2078]
[1737644048971,3.2078,3280.3,3279.8,3.81761]
[1737644049175,3.87708836,3280.2,3280.0,0.60976]
[1737644049376,3.94989872,3280.6,3280.0,0.60976]
[1737644049675,7.92296715,3280.1,3279.8,3.2078]
[1737644049868,7.92296715,3280.1,3278.9,40.8]
[1737644049869,7.92296715,3280.1,3279.5,0.60988]
[1737644050082,4.55965872,3280.1,3280.0,0.00457645]
[1737644050271,9.55965872,3280.1,3280.0,0.00457645]
[1737644050472,12.98624011,3280.1,3278.8,0.61001]
[1737644050674,3.2078,3279.5,3279.2,0.60993]
[1737644050880,3.2078,3279.7,3278.9,0.60997]
[1737644051184,3.2078,3279.1,3278.2,3.2078]
[1737644051385,3.94989872,3278.8,3278.2,3.2078]
[1737644051577,0.61003,3278.7,3278.2,3.2078]
[1737644051772,3.94989872,3278.3,3278.2,0.00457645]
[1737644051975,4.55999872,3278.3,3278.2,0.00457645]
[1737644052182,13.5808935,3278.3,3278.2,0.00457645]
[1737644052481,13.5808935,3278.3,3277.4,0.61025]
[1737644052482,0.61012,3278.2,3276.8,1.6852]
[1737644052681,3.94989872,3277.5,3276.9,0.61034]
[1737644052979,3.94989872,3277.0,3276.8,1.6852]
[1737644053185,4.0483162,3277.4,3277.1,0.61031]
[1737644053385,3.94989872,3277.5,3276.9,0.61036]
[1737644053588,3.98824755,3277.3,3276.8,1.6852]
[1737644053780,3.98824755,3277.4,3277.2,0.6103]
[1737644054086,3.2078,3277.4,3276.9,0.00457645]
[1737644054480,3.94989872,3277.5,3277.2,0.6103]
[1737644054786,4.57528304,3277.3,3276.9,0.00457645]
[1737644055086,3.94989872,3277.0,3276.9,0.00457645]
[1737644055387,7.93280621,3277.0,3276.9,0.00457645]
[1737644056082,7.15769872,3277.5,3277.1,0.61032]
[1737644056385,3.88075309,3277.4,3276.9,0.00457645]
[1737644056585,3.94989872,3277.0,3276.9,0.00457645]
[1737644056985,7.83065181,3277.0,3276.9,0.00457645]
[1737644057183,3.88075309,3277.0,3276.9,0.00457645]
[1737644057384,3.2078,3277.1,3276.9,0.00457645]
[1737644057585,7.15769872,3277.5,3277.1,0.61031]
[1737644057787,4.873,3277.9,3276.9,3.21237645]
[1737644058094,3.94161747,3277.6,3277.1,0.61032]
[1737644058290,3.94161747,3277.6,3276.9,3.21237645]
[1737644058291,3.94989872,3277.4,3276.9,3.21237645]
[1737644058485,3.2078,3277.1,3276.9,0.00457645]
[1737644058679,0.61034,3277.0,3276.9,0.00457645]
[1737644058987,4.66425417,3277.0,3276.9,0.00457645]
[1737644059586,3.2078,3277.1,3276.9,0.00457645]
[1737644059790,0.61034,3277.0,3276.9,0.00457645]
[1737644059988,4.0420482,3277.0,3275.9,3.2078]
[1737644060292,4.0420482,3277.0,3274.6,3.05387]
[1737644060293,0.61054,3276.0,3275.4,3.81843]
[1737644060495,3.2078,3276.2,3275.4,3.81843]
[1737644060496,3.2078,3276.2,3275.4,3.2078]
[1737644060693,3.89831146,3275.9,3275.4,3.2078]
[1737644060888,3.89831146,3275.9,3275.7,0.61057]
[1737644061084,3.89831146,3276.1,3275.4,3.2078]
[1737644061283,0.00457645,3276.1,3275.8,3.2078]
[1737644061484,0.00457645,3276.1,3276.0,0.61052]
[1737644061790,0.00457645,3276.1,3275.8,3.2078]
[1737644061987,4.01561216,3276.1,3275.8,3.2078]
[1737644062387,0.00457645,3276.1,3275.6,0.61059]
[1737644062694,3.94989872,3275.8,3275.6,3.2078]
[1737644062895,3.94989872,3275.8,3275.5,0.00457645]
[1737644063096,3.96437061,3275.7,3275.5,0.00457645]
[1737644063588,0.00457645,3276.1,3275.5,0.00457645]
[1737644063891,4.04082405,3276.0,3275.7,0.61057]
[1737644064085,7.76827872,3275.8,3275.5,0.00457645]
[1737644064389,7.15769872,3275.8,3275.5,0.00457645]
[1737644064593,3.90269615,3275.7,3275.6,0.61059]
[1737644064794,3.94989872,3275.8,3275.5,0.00457645]
[1737644065089,0.00457645,3276.1,3275.5,0.00457645]
[1737644065492,4.61008529,3276.0,3275.5,0.61519645]
[1737644065693,3.99954529,3276.0,3275.5,0.00457645]
[1737644065880,0.00457645,3276.1,3275.5,0.00457645]
[1737644066085,0.00457645,3276.1,3275.8,0.61054]
[1737644066283,0.00457645,3276.1,3275.5,0.61518645]
[1737644066487,4.05989283,3276.0,3275.8,0.61055]
[1737644066692,0.61509645,3276.1,3275.6,0.61059]
[1737644066892,0.00457645,3276.1,3275.5,0.00457645]
[1737644067089,4.05989283,3276.0,3275.9,0.61053]
[1737644067496,0.00457645,3276.1,3275.7,3.2078]
[1737644067682,0.00457645,3276.1,3276.0,0.61052]
[1737644067990,0.61508645,3276.1,3275.7,3.81837]
[1737644068193,0.00457645,3276.1,3275.8,0.61055]
[1737644068398,0.00457645,3276.1,3275.7,3.81837]
[1737644068583,0.00457645,3276.1,3275.9,0.61053]
[1737644068787,0.00457645,3276.1,3276.0,0.61052]
[1737644069298,0.24350843,3277.6,3276.0,5.0]
[1737644069490,0.24350843,3277.6,3277.2,3.2078]
[1737644069693,3.2078,3278.3,3277.2,3.2078]
[1737644069998,3.94989872,3277.6,3277.2,3.2078]
[1737644070288,3.94989872,3277.6,3275.8,1.6499]
[1737644070289,3.93317027,3277.5,3276.8,3.2078]
[1737644070492,0.61036,3276.9,3276.8,3.2078]
[1737644070688,3.94989872,3277.1,3276.8,3.82274645]
[1737644070888,3.94989872,3277.1,3276.8,0.00457645]
[1737644071082,3.94989872,3277.1,3275.8,1.6499]
[1737644071083,3.60705032,3276.9,3275.8,3.2078]
[1737644071289,3.94989872,3276.0,3275.4,3.2078]
[1737644071488,3.94989872,3275.5,3275.4,3.2078]
[1737644071905,4.00794444,3275.9,3275.4,3.2078]
[1737644072086,7.15769872,3276.0,3275.4,3.2078]
[1737644072291,7.16227517,3276.0,3275.4,3.2078]
[1737644072492,3.95186218,3275.8,3275.4,3.2078]
[1737644072795,7.16227517,3276.0,3275.7,0.61057]
[1737644072991,7.16227517,3276.0,3275.6,0.61059]
[1737644073196,4.56240218,3275.9,3275.4,3.2078]
[1737644073391,3.94989872,3275.5,3275.4,3.2078]
[1737644074397,7.93501643,3275.5,3275.4,3.2078]
[1737644074798,3.94989872,3275.5,3275.4,3.2078]
[1737644075191,12.87334141,3275.5,3275.3,0.00457645]
[1737644075390,12.87334141,3275.5,3273.3,6.92971381]
[1737644075391,12.87334141,3275.5,3273.8,3.2078]
[1737644075688,3.94989872,3274.4,3273.9,0.61092]
[1737644075991,3.94989872,3274.4,3273.8,3.2078]
[1737644076195,3.94989872,3274.4,3274.2,0.61086]
[1737644076196,4.04244689,3274.3,3274.2,0.61086]
[1737644076393,3.94989872,3274.9,3274.2,3.2078]
[1737644076593,3.94989872,3275.4,3274.9,0.61072]
[1737644076794,7.91628759,3275.4,3275.1,3.2078]
[1737644077196,3.94989872,3275.4,3274.7,3.2078]
[1737644077494,3.94989872,3274.9,3274.8,0.61075]
[1737644077997,3.94989872,3274.9,3274.3,44.0078]
[1737644078196,3.94989872,3274.9,3274.5,0.61079]
[1737644078396,3.94989872,3274.9,3274.8,0.61075]
[1737644078694,3.2078,3275.5,3274.8,40.8]
[1737644078695,3.94989872,3275.4,3274.8,40.8]
[1737644079001,3.94989872,3274.9,3274.4,0.61081]
[1737644079188,3.94989872,3274.9,3274.3,3.2078]
[1737644079394,3.89643028,3274.8,3274.0,40.8]
[1737644079591,4.56072872,3274.4,3273.9,3.21237645]
[1737644080102,3.89643028,3274.3,3273.9,3.82329645]
[1737644080291,3.89643028,3274.3,3273.9,3.82328645]
[1737644080597,0.61086,3274.2,3273.9,3.21237645]
[1737644080901,1.6328,3274.2,3273.9,3.21237645]
[1737644081095,0.6109,3274.0,3273.9,0.00457645]
[1737644081402,0.61099,3273.5,3273.1,0.12615914]
[1737644081599,0.61104,3273.3,3273.1,0.12615914]
[1737644081900,3.95143245,3273.2,3273.1,0.12615914]
[1737644082300,3.94989872,3273.5,3273.1,3.94502914]
[1737644082499,3.95447517,3273.5,3273.1,3.33395914]
[1737644082803,4.0313017,3273.4,3273.2,0.61104]
[1737644083003,0.00457645,3273.5,3273.2,0.61104]
[1737644083202,0.00457645,3273.5,3273.1,44.13395914]
[1737644083601,0.00457645,3273.5,3273.1,3.33395914]
[1737644083903,4.00818674,3273.4,3273.1,3.33395914]
[1737644084298,4.00818674,3273.4,3273.1,0.12615914]
[1737644084605,3.2078,3273.2,3272.3,0.12573096]
[1737644084795,4.56109872,3272.4,3272.3,0.12573096]
[1737644084998,3.94989872,3272.4,3271.6,3.2078]
[1737644085198,3.94989872,3272.2,3271.6,3.2078]
[1737644085397,3.94989872,3272.2,3272.1,3.81905]
[1737644085603,3.94989872,3272.2,3272.1,3.2078]
[1737644086104,7.98845071,3272.2,3271.8,0.00305974]
[1737644086301,11.19625071,3272.2,3271.8,0.00305974]
[1737644086705,7.98845071,3272.2,3271.8,0.00305974]
[1737644087102,0.61127,3272.1,3271.8,0.00305974]
[1737644087405,0.61138,3271.4,3270.9,3.2078]
[1737644087603,0.61138,3271.5,3270.9,3.2078]
[1737644087802,4.66576149,3271.4,3270.9,3.2078]
[1737644088099,4.05438149,3271.6,3270.2,0.61159]
[1737644088303,3.94989872,3270.3,3269.8,3.2078]
[1737644088605,0.2454559,3271.8,3270.2,3.2078]
[1737644088606,3.94989872,3270.8,3270.2,3.2078]
[1737644088799,3.94989872,3270.8,3270.7,0.61151]
[1737644089304,0.00458386,3271.2,3270.6,3.2078]
[1737644089497,0.00458386,3271.2,3271.0,3.2078]
[1737644089700,0.00458386,3271.2,3271.1,0.61144]
[1737644089902,4.01836449,3271.1,3271.0,3.2078]
[1737644090400,0.00458386,3271.2,3271.1,0.61144]
[1737644090603,0.00458386,3271.2,3270.5,3.2078]
[1737644090902,3.94989872,3270.8,3270.5,3.2078]
[1737644091302,3.97895148,3270.7,3270.5,3.81935]
[1737644091499,3.97895148,3270.7,3270.6,0.61153]
[1737644091699,3.94989872,3270.8,3270.7,0.61151]
[1737644092007,0.00458386,3271.2,3270.5,3.2078]
[1737644092211,0.00458386,3271.2,3271.1,3.81924]
[1737644093206,0.00458386,3271.2,3271.1,3.2078]
[1737644093505,3.97894035,3271.2,3270.8,0.6115]
[1737644093701,7.18674035,3271.2,3270.5,3.2078]
[1737644093895,4.56133872,3271.1,3270.5,0.61155]
[1737644094094,3.97894035,3271.2,3270.9,3.2078]
[1737644094299,0.00458386,3271.2,3271.1,0.61144]
[1737644094506,0.00458386,3271.2,3270.5,3.2078]
[1737644094707,3.89147299,3271.2,3270.5,3.2078]
[1737644094902,3.94989872,3271.1,3270.2,0.61161]
[1737644095109,3.94989872,3271.1,3270.5,3.2078]
[1737644095304,3.88688913,3271.0,3270.9,0.61148]
[1737644095501,3.88688913,3271.0,3270.9,3.81928]
[1737644095808,0.00458386,3271.2,3271.1,0.61144]
[1737644096003,1.7194,3272.0,3271.1,40.8]
[1737644096305,4.00582962,3271.9,3271.5,3.2078]
[1737644096609,4.00582962,3271.9,3271.8,0.61131]
[1737644098303,0.61135,3271.6,3271.5,0.00458386]
[1737644098505,3.94989872,3271.6,3271.5,0.00458386]
[1737644098701,8.55832424,3271.6,3271.5,0.00458386]
[1737644099901,8.55831424,3271.6,3271.5,0.00458386]
[1737644100099,7.94697424,3271.6,3271.5,0.00458386]
[1737644100303,8.55831424,3271.6,3271.5,0.00458386]
[1737644100606,7.94697424,3271.6,3271.5,0.61594386]
[1737644101008,7.94697424,3271.6,3271.5,0.00458386]
[1737644101210,8.55831424,3271.6,3271.5,0.00458386]
[1737644101413,12.94697424,3271.6,3270.6,0.61152]
[1737644101708,3.94989872,3271.1,3270.5,3.2078]
[1737644101927,3.94989872,3271.1,3271.0,0.61146]
[1737644102115,3.94989872,3271.6,3270.9,3.2078]
[1737644102510,4.01215073,3271.5,3270.9,3.2078]
[1737644102718,4.01215073,3271.5,3271.4,3.81918]
[1737644103016,3.94989872,3272.1,3271.4,3.2078]
[1737644103210,0.00458386,3272.2,3271.9,3.2078]
[1737644103515,0.00458386,3272.2,3272.1,0.61125]
[1737644103711,3.94989872,3273.6,3271.9,8.2078]
[1737644103910,3.94989872,3273.6,3273.5,0.61099]
[1737644104109,1.5929,3274.0,3273.6,0.61096]
[1737644104407,3.94989872,3274.1,3273.8,0.61093]
[1737644104408,3.98535525,3273.9,3273.8,0.61093]
[1737644104819,3.98535525,3274.0,3273.9,0.61092]
[1737644105112,0.00458386,3274.2,3273.8,3.2078]
[1737644105317,0.00458386,3274.2,3274.1,3.81868]
[1737644106308,3.94989872,3275.1,3275.0,0.61071]
[1737644106621,3.94989872,3275.6,3275.5,0.6106]
[1737644106818,3.94989872,3275.6,3275.5,3.8184]
[1737644107415,3.94989872,3275.6,3275.5,3.2078]
[1737644107620,3.94989872,3275.6,3275.5,3.81842]
[1737644108012,3.94989872,3275.6,3275.5,0.61062]
[1737644108209,3.94989872,3275.6,3275.2,0.00458386]
[1737644108608,7.84887941,3275.6,3275.2,0.61523386]
[1737644108820,7.84887941,3275.6,3275.2,0.00458386]
[1737644109021,3.89898069,3275.6,3275.5,3.81842]
[1737644109222,0.00458386,3275.9,3275.8,0.61056]
[1737644109422,0.00458386,3275.9,3275.5,3.2078]
[1737644109618,3.94989872,3275.6,3275.5,3.2078]
[1737644109917,7.83955297,3275.6,3275.2,0.00458386]
[1737644110122,3.2078,3275.5,3275.2,0.00458386]
[1737644110624,4.04514059,3275.4,3275.2,0.00458386]
[1737644110918,3.94989872,3275.6,3275.3,3.2078]
[1737644111223,4.04514059,3275.4,3275.3,3.2078]
[1737644111423,4.04514059,3275.4,3275.2,0.00458386]
[1737644111721,3.94989872,3275.6,3275.2,0.00458386]
[1737644111921,3.94989872,3275.6,3275.2,0.61524386]
[1737644112426,3.94989872,3275.6,3275.2,0.61525386]
[1737644112723,3.94989872,3275.6,3275.3,0.61065]
[1737644113023,3.94989872,3275.6,3275.2,0.00458386]
[1737644113224,3.94989872,3275.6,3275.2,0.61524386]
[1737644113921,4.01088908,3275.5,3275.2,0.61524386]
[1737644114121,4.01088908,3275.5,3275.2,0.00458386]
[1737644114319,3.21238386,3275.9,3275.2,3.21238386]
[1737644114524,0.00458386,3275.9,3275.8,0.61056]
[1737644114720,3.86e-06,3275.9,3275.8,0.61056]
[1737644114922,3.86e-06,3275.9,3275.8,5.61056]
[1737644115127,3.86e-06,3275.9,3275.8,0.61056]
[1737644115430,3.86e-06,3275.9,3275.7,0.61057]
[1737644115618,3.86e-06,3275.9,3275.6,3.2078]
[1737644115921,3.89641768,3275.8,3275.5,0.61061]
[1737644116120,3.86e-06,3275.9,3275.7,3.2078]
[1737644116327,3.86e-06,3275.9,3275.8,0.61056]
[1737644116525,3.86e-06,3275.9,3275.7,3.2078]
[1737644116723,2.88919187,3275.9,3275.8,0.61056]
[1737644117024,3.94989872,3277.1,3275.8,0.61056]
[1737644117025,5.52739872,3277.6,3276.1,1.52627]
[1737644117322,5.52739872,3277.6,3276.7,3.2078]
[1737644117323,1.5775,3277.6,3276.7,3.2078]
[1737644117625,4.05789119,3277.5,3277.0,0.61033]
[1737644117818,4.05789119,3277.5,3276.7,3.2078]
[1737644118022,0.00458386,3277.6,3277.3,3.2078]
[1737644118220,0.00458386,3277.6,3277.5,0.61024]
[1737644119225,7.93259016,3277.6,3277.4,0.61025]
[1737644119419,7.93259016,3277.6,3277.3,3.2078]
[1737644119420,7.93259016,3277.6,3277.3,3.81808]
[1737644119623,0.00458386,3277.6,3277.5,0.61024]
[1737644119925,3.94501225,3277.5,3277.3,3.81808]
[1737644120122,7.89949483,3277.6,3276.9,3.2078]
[1737644120322,3.95448258,3277.6,3277.1,0.61031]
[1737644120625,3.14882191,3277.5,3276.9,3.2078]
[1737644120828,7.15769872,3279.1,3277.5,1.52562]
[1737644121126,0.002,3279.2,3279.0,0.60995]
[1737644121322,0.002,3279.2,3278.9,0.60997]
[1737644121522,0.002,3279.2,3278.6,3.2078]
[1737644121728,4.0150367,3279.1,3278.5,0.61005]
[1737644121922,3.8178,3278.9,3278.4,0.61008]
[1737644122121,0.61,3278.8,3278.5,0.00457673]
[1737644122317,4.0150367,3278.8,3278.5,0.00457673]
[1737644122628,0.04951909,3278.7,3277.6,1.5927]
[1737644122929,3.81787,3278.5,3278.0,0.61015]
[1737644123126,0.61007,3278.5,3278.0,0.61015]
[1737644123330,3.2078,3278.2,3278.0,0.61015]
[1737644123628,3.2078,3278.2,3277.6,1.5927]
[1737644123629,4.0148756,3278.1,3277.6,1.5927]
[1737644123828,4.0148756,3278.1,3277.8,0.00457673]
[1737644124026,4.0148756,3278.1,3277.8,0.61475673]
[1737644124328,3.2078,3278.2,3277.8,0.00457673]
[1737644124526,3.81784,3278.6,3278.2,0.6101]
[1737644124727,0.20870474,3278.0,3277.9,0.61017]
[1737644124930,0.20870474,3278.0,3277.9,3.81797]
[1737644125232,3.21237673,3279.1,3277.9,3.2078]
[1737644125528,0.00457673,3279.1,3278.8,0.61]
[1737644125736,3.91721866,3279.0,3278.3,3.2078]
[1737644125929,0.60999,3278.9,3278.5,0.61004]
[1737644126123,0.60999,3278.9,3278.3,3.2078]
[1737644126124,3.91721866,3279.0,3278.7,0.61002]
[1737644126326,0.00457673,3279.1,3278.7,0.61002]
[1737644126632,4.00988109,3279.0,3278.4,1.5252]
[1737644126826,4.00988109,3279.0,3278.9,0.60998]
[1737644127025,0.00457673,3279.1,3278.7,3.2078]
[1737644127229,0.00457673,3279.1,3279.0,0.60997]
[1737644127933,4.05076789,3279.1,3278.3,3.2078]
[1737644128138,4.05076789,3279.1,3277.2,3.94989872]
[1737644128139,0.61008,3278.4,3277.9,0.61016]
[1737644128439,3.94742643,3278.3,3277.8,3.21237673]
[1737644128635,3.94742643,3278.3,3278.1,0.61013]
[1737644128828,0.61005,3278.6,3277.8,3.21237673]
[1737644128829,0.61007,3278.5,3277.8,3.21237673]
[1737644129034,3.94742643,3278.2,3278.0,0.61013]
[1737644129338,3.2078,3278.7,3277.8,3.21237673]
[1737644129339,3.94742643,3278.4,3277.8,3.21237673]
[1737644129636,3.90641338,3278.5,3277.8,3.21237673]
[1737644129939,3.90641338,3278.3,3277.8,0.00457673]
[1737644130135,3.2078,3278.3,3277.8,0.61475673]
[1737644130336,3.81797,3277.9,3277.8,0.00457673]
[1737644130642,7.13433443,3277.9,3277.8,0.00457673]
[1737644131035,7.74450443,3277.9,3277.8,0.00457673]
[1737644132049,1.52548,3277.8,3276.7,0.002]
[1737644132252,0.61043,3276.5,3275.7,1.5764]
[1737644132558,3.2078,3276.2,3275.2,3.2078]
[1737644132749,3.2078,3276.3,3275.2,3.2078]
[1737644132949,3.9287684,3276.1,3275.2,3.2078]
[1737644133160,3.93334513,3276.1,3275.4,0.00457673]
[1737644133344,3.2078,3275.5,3275.4,0.00457673]
[1737644133656,7.74674397,3275.5,3275.4,0.00457673]
[1737644133856,12.74674397,3275.5,3275.4,0.00457673]
[1737644134054,0.61068,3275.2,3274.6,0.61077]
[1737644134357,3.2078,3274.9,3274.5,3.2078]
[1737644134549,3.2078,3274.9,3274.5,3.8186]
[1737644134749,3.89289782,3274.8,3274.5,3.2078]
[1737644134948,0.61077,3274.7,3274.5,3.2078]
[1737644135249,0.61077,3274.7,3273.9,40.8]
[1737644135250,3.89289782,3274.6,3274.3,0.00457673]
[1737644135456,0.61082,3274.4,3274.3,0.00457673]
[1737644135756,8.51418982,3274.4,3274.3,0.00457673]
[1737644135955,7.90336982,3274.4,3273.5,3.2078]
[1737644136147,3.94989872,3273.7,3272.7,0.61113]
[1737644136344,3.94989872,3273.7,3272.4,0.61118]
[1737644136345,0.61105,3273.2,3272.4,0.61118]
[1737644136545,3.94989872,3273.7,3272.1,3.2078]
[1737644136546,4.01795029,3273.6,3272.1,3.2078]
[1737644136745,3.2078,3273.8,3272.5,3.2078]
[1737644136746,4.01795029,3273.1,3272.5,3.2078]
[1737644136945,3.94989872,3273.7,3272.5,3.2078]
[1737644137151,0.00457673,3273.1,3272.8,0.6111]